[Event "Romanian Superleague 2022"]
[Site "Oradea"]
[Date "2022.09.26"]
[Round "6.9"]
[White "Secheres, Adrian-Simion"]
[Black "Istratescu, Andrei"]
[Result "1-0"]
[ECO "D37"]
[WhiteElo "2375"]
[BlackElo "2408"]
[Annotator "TA"]
[PlyCount "117"]
[EventDate "2022.09.21"]
[EventType "team-tourn"]
[EventCountry "ROU"]
[SourceTitle "playchess.com"]
[Source "ChessBase"]
[SourceQuality "1"]
[TimeControl "40/5400+30:1800+30"]

{[%evp 9,117,32,33,25,30,23,26,29,34,27,36,29,36,36,36,35,32,37,38,37,36,29,30,23,25,0,2,7,17,8,16,7,15,15,30,18,14,8,16,15,8,0,0,-9,0,-5,20,0,40,39,28,47,63,58,68,0,48,55,114,109,111,88,156,54,43,0,226,121,322,321,303,301,260,263,543,504,575,564,530,445,1381,1151,12833,12834,12846,186,186,186,186,0,0,0,0,0,0,0,0,0,186,186,12847,12847,12848,12848,12850,27997,27998,27998,27999,27999]} 1. d4 {[%emt 0:00:05]} Nf6 {[%emt 0:00:11]} 2. c4 {[%emt 0:00:15]} e6 {[%emt 0:00:21]} 3. Nf3 {[%emt 0:00:26]} d5 {[%emt 0:01:10]} 4. Nc3 {[%emt 0:00:35]} a6 {[%emt 0:20:53]} 5. cxd5 {[%emt 0:00:51]} exd5 {[%emt 0:00:24]} 6. Bg5 {[%emt 0:00:27] D37: Queen's Gambit Declined: 5 Bf4.} Be6 {[%emt 0:00:05]} 7. e3 {[%emt 0:00:37]} Nbd7 {[%emt 0:07:36]} 8. Bd3 {[%emt 0:00:25] White has an edge.} Bd6 {[%emt 0:00:57]} 9. O-O {[%emt 0:00:22]} c6 {[%emt 0:00:44] 9...c6 scores better than 9...0-0.} 10. Bf4 {[%emt 0:00:25]} Qc7 {[%emt 0:00:48]} 11. Bxd6 {[%emt 0:00:08]} Qxd6 {[%emt 0:00:04]} 12. h3 {[%emt 0:01:27]} O-O {[%emt 0:02:46]} 13. Qc2 {[%emt 0:00:37]} Rfe8 {[%emt 0:07:58]} 14. Rac1 {[%emt 0:01:07]} h6 {[%emt 0:08:03]} 15. Rfe1 {[%emt 0:00:50] [#]} Rac8 $146 {[%emt 0:02:33]} ({Predecessor:} 15... Rad8 16. Na4 Ne4 17. Nc5 Ndxc5 18. dxc5 Qe7 19. b4 Qf6 20. Nd4 Qg5 21. f3 Ng3 {½-½ (56) Saydaliev,S (2390)-Ning,K (2224) Moscow 2019}) 16. Na4 {[%emt 0:08:49]} Ne4 {[%emt 0:09:09]} 17. Bxe4 {[%emt 0:01:49]} dxe4 {[%emt 0:00:16]} 18. Nd2 {[%emt 0:00:17]} Bd5 {[%emt 0:00:22]} 19. Nc5 {[%emt 0:09:21]} Nxc5 {[%emt 0:03:05]} 20. Qxc5 {[%emt 0:00:07]} Qxc5 {[%emt 0:19:34]} 21. Rxc5 {[%emt 0:00:07]} Kf8 {[%emt 0:00:03]} 22. b3 {[%emt 0:05:56]} Ke7 {[%emt 0:00:45]} 23. f3 {[%emt 0:08:28]} Kd6 {[%emt 0:07:12]} 24. Kf2 {[%emt 0:04:28]} Re6 {[%emt 0:03:54]} 25. Rec1 {[%emt 0:16:40]} Rce8 {[%emt 0:00:34] Threatens to win with ...exf3.} 26. R5c3 {[%emt 0:01:14]} Kd7 {[%emt 0:01:13]} 27. f4 {[%emt 0:07:57]} Rd6 {[%emt 0:02:21]} 28. Rc5 {[%emt 0:14:13]} h5 {[%emt 0:00:49][%cal Og7g5]} 29. Nc4 {[%emt 0:06:58]} Bxc4 {[%emt 0:00:03]} 30. bxc4 $14 {[%emt 0:01:48][%mdl 4096] Endgame KRR-KRR} g6 {[%emt 0:00:20] Prevents Rf5.} 31. Rb1 {[%emt 0:01:06]} Kc7 {[%emt 0:00:04]} 32. a4 {[%emt 0:03:04] White is more active.} (32. Rg5 $14) 32... b6 {[%emt 0:00:43]} (32... f6 $11 {is superior.} 33. a5 Rdd8) 33. Rg5 {[%emt 0:01:47]} Rf6 {[%emt 0:00:22] Against f5} (33... c5 $14) 34. g4 {[%emt 0:01:55]} h4 {[%emt 0:01:00]} 35. Ke2 {[%emt 0:00:22]} Rfe6 {[%emt 0:00:46] [#]} ({Black should try} 35... Rd6) 36. f5 {[%emt 0:01:37]} (36. a5 $1 $16) 36... Rf6 $1 {[%emt 0:00:04]} 37. Rf1 {[%emt 0:00:11]} Re7 $2 {[%emt 0:00:29]} (37... b5 $1 $11 {and Black has nothing to worry.}) 38. Rf4 {[%emt 0:00:37]} ({White should play} 38. fxg6 $18 Rxf1 39. g7 (39. Kxf1 fxg6 40. Rxg6 Rf7+ 41. Ke2 Rf3 $16)) 38... c5 $2 {[%emt 0:01:09]} (38... b5 $16 {is a better defense.}) 39. fxg6 $18 {[%emt 0:01:25]} Rxg6 {[%emt 0:00:23]} (39... Rxf4 $2 40. g7 Re8 41. exf4 $18) 40. Rxg6 {[%emt 0:00:00]} fxg6 {[%emt 0:00:00] KR-KR} 41. Rf6 {[%emt 0:15:33]} cxd4 $2 {[%emt 0:01:19]} (41... Rg7 42. a5 (42. dxc5 bxc5 43. Rxa6 Rg8 $16) 42... bxa5) 42. exd4 {[%emt 0:00:02]} e3 {[%emt 0:00:33]} 43. a5 {[%emt 0:11:52]} (43. Rxg6 Re4 $18) 43... bxa5 {[%emt 0:00:31]} 44. Rxg6 {[%emt 0:02:08]} Re4 {[%emt 0:00:18]} (44... Kb7 $142 45. c5 a4 46. Rb6+ Ka7) 45. Rxa6 {[%emt 0:00:59]} Rxd4 {[%emt 0:00:21]} 46. Rxa5 {[%emt 0:00:05]} Rxc4 {[%emt 0:00:07]} 47. Ra3 $2 {[%emt 0:00:32]} (47. Rh5 Kd6 48. Rxh4) 47... Kd6 {[%emt 0:00:38]} 48. Rxe3 {[%emt 0:00:49] Kf3 is the strong threat.} ({Much less strong is} 48. Kxe3 $6 Ke5 $16) 48... Rc8 {[%emt 0:00:15] [#]} 49. Ra3 $2 {[%emt 0:02:09]} (49. Kf3 $1 $18 {[%cal Rf3f4]} Rf8+ 50. Ke4) 49... Ke5 $11 {[%emt 0:00:29]} 50. Ke3 {[%emt 0:00:16]} Rc5 {[%emt 0:00:16]} 51. Kf3 {[%emt 0:00:41]} Rb5 {[%emt 0:00:22]} 52. Re3+ {[%emt 0:00:37]} Kf6 {[%emt 0:00:10]} 53. Kf4 {[%emt 0:00:35] Hoping for Re4.} Rb4+ {[%emt 0:01:15]} (53... Rb6 $1 $11) 54. Re4 $18 {[%emt 0:00:31]} Rb3 {[%emt 0:00:32]} (54... Rb5 55. Ra4 Kg6 56. Ra6+ Kf7) 55. g5+ {[%emt 0:00:37]} Kg6 {[%emt 0:00:21]} 56. Kg4 {[%emt 0:01:14]} ({Not} 56. Re6+ Kh7 $18) 56... Rg3+ {[%emt 0:00:18]} 57. Kxh4 {[%emt 0:00:06]} Rxg5 {[%emt 0:00:02]} 58. Re6+ {[%emt 0:00:10]} Kf5 {[%emt 0:00:04]} 59. Re5+ $1 {[%emt 0:00:04] Weighted Error Value: White=0.27 (precise) /Black=0.37} 1-0

[Event "Romanian Superleague 2022"]
[Site "Oradea"]
[Date "2022.09.26"]
[Round "6.10"]
[White "Vedmediuc, Serghei"]
[Black "Filip, Andrei"]
[Result "1/2-1/2"]
[ECO "C42"]
[WhiteElo "2430"]
[BlackElo "2356"]
[Annotator "ChessBase"]
[PlyCount "102"]
[EventDate "2022.09.21"]
[EventType "team-tourn"]
[EventCountry "ROU"]
[SourceTitle "playchess.com"]
[Source "ChessBase"]
[SourceQuality "1"]
[TimeControl "40/5400+30:1800+30"]

1. e4 {[%emt 0:00:12]} e5 {[%emt 0:00:11]} 2. Nf3 {[%emt 0:00:07]} Nf6 {[%emt 0:00:06]} 3. Nxe5 {[%emt 0:00:52]} d6 {[%emt 0:00:05]} 4. Nf3 {[%emt 0:00:07]} Nxe4 {[%emt 0:00:04]} 5. d4 {[%emt 0:00:09]} d5 {[%emt 0:00:04]} 6. Bd3 {[%emt 0:00:07]} Bd6 {[%emt 0:00:13]} 7. O-O {[%emt 0:00:11]} O-O {[%emt 0:00:06]} 8. c4 {[%emt 0:00:10]} c6 {[%emt 0:00:07]} 9. Nc3 {[%emt 0:04:19]} Nxc3 {[%emt 0:01:51]} 10. bxc3 {[%emt 0:00:06]} dxc4 {[%emt 0:00:28]} 11. Bxc4 {[%emt 0:00:07]} Bf5 {[%emt 0:00:10]} 12. Bg5 {[%emt 0:02:27]} Qa5 {[%emt 0:00:09]} 13. d5 {[%emt 0:01:54]} Qc7 {[%emt 0:25:06]} 14. Re1 {[%emt 0:02:55]} h6 {[%emt 0:07:35]} 15. Bh4 {[%emt 0:06:57]} Nd7 {[%emt 0:10:48]} 16. dxc6 {[%emt 0:09:09]} bxc6 {[%emt 0:00:20]} 17. Be7 {[%emt 0:00:33]} Bxe7 {[%emt 0:00:37]} 18. Rxe7 {[%emt 0:00:02]} Qd8 {[%emt 0:01:38]} 19. Qe1 {[%emt 0:29:05]} Nb6 {[%emt 0:03:30]} 20. Rd1 {[%emt 0:03:14]} Qc8 {[%emt 0:01:34]} 21. Bb3 {[%emt 0:01:14]} c5 {[%emt 0:00:54]} 22. Qe5 {[%emt 0:20:31]} c4 {[%emt 0:18:02]} 23. Nd4 {[%emt 0:01:51]} Bg4 {[%emt 0:01:12]} 24. Bc2 {[%emt 0:00:29]} Nd7 {[%emt 0:00:28]} 25. Qg3 {[%emt 0:03:04]} Nf6 {[%emt 0:07:56]} 26. Rde1 {[%emt 0:04:03]} Qb8 {[%emt 0:04:31]} 27. f4 {[%emt 0:04:19]} Bd7 {[%emt 0:02:27]} 28. Bf5 {[%emt 0:03:17]} Bxf5 {[%emt 0:01:30]} 29. Nxf5 {[%emt 0:00:01]} Nh5 {[%emt 0:00:21]} 30. Qg4 {[%emt 0:00:26]} Qb6+ {[%emt 0:01:40]} 31. R7e3 {[%emt 0:00:13]} g6 {[%emt 0:02:49]} 32. Nxh6+ {[%emt 0:00:27]} Kh7 {[%emt 0:00:38]} 33. Nf5 {[%emt 0:00:23]} Rae8 {[%emt 0:03:13]} 34. Kf1 {[%emt 0:01:09]} Rxe3 {[%emt 0:01:39]} 35. Nxe3 {[%emt 0:00:01]} Re8 {[%emt 0:02:37]} 36. Qf3 {[%emt 0:00:34]} Qf6 {[%emt 0:00:53]} 37. Nxc4 {[%emt 0:01:20]} Rxe1+ {[%emt 0:00:16]} 38. Kxe1 {[%emt 0:00:01]} Nxf4 {[%emt 0:00:22]} 39. Nd2 {[%emt 0:01:19]} Qe5+ {[%emt 0:01:53]} 40. Kf1 {[%emt 0:00:00]} Kg8 {[%emt 0:00:00]} 41. Qa8+ {[%emt 0:12:34]} Kh7 {[%emt 0:04:02]} 42. Qe4 {[%emt 0:00:06]} Qg5 {[%emt 0:07:28]} 43. Qf3 {[%emt 0:05:56]} Qb5+ {[%emt 0:03:54]} 44. c4 {[%emt 0:00:45]} Qe5 {[%emt 0:00:08]} 45. g3 {[%emt 0:03:47]} Qa1+ {[%emt 0:00:06]} 46. Kf2 {[%emt 0:00:05]} Qd4+ {[%emt 0:00:08]} 47. Qe3 {[%emt 0:08:09]} Nh3+ {[%emt 0:00:07]} 48. Ke2 {[%emt 0:01:09]} Ng1+ {[%emt 0:00:13]} 49. Kf2 {[%emt 0:00:12]} Nh3+ {[%emt 0:00:07]} 50. Ke2 {[%emt 0:00:05]} Ng1+ {[%emt 0:00:11]} 51. Kf2 {[%emt 0:00:08]} Nh3+ {[%emt 0:00:02]} 1/2-1/2

[Event "Romanian Superleague 2022"]
[Site "Oradea"]
[Date "2022.09.26"]
[Round "6.11"]
[White "Ciorgovean, Iustin"]
[Black "Manea, Alexandru"]
[Result "1/2-1/2"]
[ECO "E01"]
[WhiteElo "2314"]
[BlackElo "2326"]
[Annotator "ChessBase"]
[PlyCount "103"]
[EventDate "2022.09.21"]
[EventType "team-tourn"]
[EventCountry "ROU"]
[SourceTitle "playchess.com"]
[Source "ChessBase"]
[SourceQuality "1"]
[TimeControl "40/5400+30:1800+30"]

1. Nf3 {[%emt 0:00:07]} Nf6 {[%emt 0:02:04]} 2. g3 {[%emt 0:01:10]} d5 {[%emt 0:05:09]} 3. Bg2 {[%emt 0:00:06]} e6 {[%emt 0:00:10]} 4. c4 {[%emt 0:00:53]} c6 {[%emt 0:00:07]} 5. d4 {[%emt 0:00:55]} Nbd7 {[%emt 0:01:06]} 6. O-O {[%emt 0:00:50]} Bd6 {[%emt 0:00:13]} 7. Nfd2 {[%emt 0:01:42]} O-O {[%emt 0:01:12]} 8. Nc3 {[%emt 0:01:04]} Be7 {[%emt 0:01:54]} 9. e4 {[%emt 0:01:43]} dxe4 {[%emt 0:00:28]} 10. Ndxe4 {[%emt 0:00:07]} Nxe4 {[%emt 0:00:05]} 11. Nxe4 {[%emt 0:00:05]} e5 {[%emt 0:00:08]} 12. d5 {[%emt 0:07:22]} f5 {[%emt 0:03:42]} 13. dxc6 {[%emt 0:08:26]} bxc6 {[%emt 0:06:28]} 14. Nd6 {[%emt 0:01:24]} Qc7 {[%emt 0:03:12]} 15. Nxc8 {[%emt 0:08:44]} Raxc8 {[%emt 0:00:13]} 16. b3 {[%emt 0:00:31]} Bc5 {[%emt 0:09:27]} 17. Bb2 {[%emt 0:00:28]} e4 {[%emt 0:09:34]} 18. Qh5 {[%emt 0:19:34]} Rce8 {[%emt 0:18:57]} 19. Rad1 {[%emt 0:03:31]} Ne5 {[%emt 0:01:48]} 20. Bxe5 {[%emt 0:07:35]} Rxe5 {[%emt 0:00:48]} 21. Kh1 {[%emt 0:00:43]} Qe7 {[%emt 0:10:25]} 22. f4 {[%emt 0:12:27]} Re6 {[%emt 0:05:21]} 23. Qe2 {[%emt 0:00:13]} g6 {[%emt 0:05:42]} 24. Rd2 {[%emt 0:00:27]} Bb4 {[%emt 0:05:19]} 25. Rdd1 {[%emt 0:01:05]} Rff6 {[%emt 0:02:13]} 26. Qc2 {[%emt 0:04:06]} Bc5 {[%emt 0:01:09]} 27. Rd2 {[%emt 0:00:39]} Bb4 {[%emt 0:00:34]} 28. Rd4 {[%emt 0:01:05]} Rd6 {[%emt 0:00:27]} 29. Rfd1 {[%emt 0:01:20]} Bc5 {[%emt 0:00:21]} 30. R4d2 {[%emt 0:00:35]} Rxd2 {[%emt 0:00:34]} 31. Rxd2 {[%emt 0:00:17]} Rd6 {[%emt 0:00:13]} 32. Qd1 {[%emt 0:00:35]} Rxd2 {[%emt 0:03:05]} 33. Qxd2 {[%emt 0:00:02]} Bb4 {[%emt 0:00:08]} 34. Qd1 {[%emt 0:02:49]} Kg7 {[%emt 0:01:42]} 35. Bf1 {[%emt 0:02:00]} Bc5 {[%emt 0:00:21]} 36. Qd2 {[%emt 0:01:19]} Kh6 {[%emt 0:00:17]} 37. Kg2 {[%emt 0:00:17]} Bb4 {[%emt 0:00:39]} 38. Qd4 {[%emt 0:00:31]} Bc5 {[%emt 0:00:08]} 39. Qd2 {[%emt 0:00:06]} Kg7 {[%emt 0:00:37]} 40. Be2 {[%emt 0:00:00]} Kf7 {[%emt 0:00:00]} 41. Qc3 {[%emt 0:05:38]} Kg8 {[%emt 0:07:58]} 42. a3 {[%emt 0:08:07]} a5 {[%emt 0:16:28]} 43. Qxa5 {[%emt 0:01:10]} Bxa3 {[%emt 0:00:03]} 44. c5 {[%emt 0:08:44]} Qxc5 {[%emt 0:01:30]} 45. Qxc5 {[%emt 0:00:18]} Bxc5 {[%emt 0:00:07]} 46. Ba6 {[%emt 0:00:24]} Bb4 {[%emt 0:00:06]} 47. Bb7 {[%emt 0:00:06]} c5 {[%emt 0:00:04]} 48. Bd5+ {[%emt 0:00:17]} Kg7 {[%emt 0:00:04]} 49. h3 {[%emt 0:00:38]} Bd2 {[%emt 0:00:09]} 50. h4 {[%emt 0:00:38]} Kf6 {[%emt 0:00:07]} 51. Kf2 {[%emt 0:00:34]} Bc1 {[%emt 0:00:06]} 52. Bc4 {[%emt 0:00:37]} 1/2-1/2

[Event "Romanian Superleague 2022"]
[Site "Oradea"]
[Date "2022.09.26"]
[Round "6.12"]
[White "Vilcu, Matei-Stefan"]
[Black "Carmaciu, Lucian-Catalin"]
[Result "1/2-1/2"]
[ECO "B01"]
[WhiteElo "2221"]
[BlackElo "2376"]
[Annotator "TA"]
[PlyCount "207"]
[EventDate "2022.09.21"]
[EventType "team-tourn"]
[EventCountry "ROU"]
[SourceTitle "playchess.com"]
[Source "ChessBase"]
[SourceQuality "1"]
[TimeControl "40/5400+30:1800+30"]

{[%evp 10,207,41,28,77,67,97,92,154,127,180,199,173,189,267,256,369,341,495,484,498,479,474,472,482,488,1170,1094,1154,699,691,489,491,481,485,483,479,456,438,415,448,407,394,380,381,367,497,493,494,488,489,482,514,514,487,401,401,401,384,340,337,340,340,338,337,334,305,232,290,273,306,294,337,335,329,321,308,297,286,189,189,189,189,189,189,189,189,189,317,304,316,273,311,204,311,311,286,0,258,258,350,286,344,335,539,477,462,455,441,426,29973,0,252,0,29973,985,29975,29977,29977,29978,29978,29979,29979,29980,29980,29981,85,78,85,78,82,78,78,75,75,75,75,75,75,75,78,75,78,78,75,75,75,75,78,75,75,75,75,75,78,78,78,78,78,78,78,78,78,78,78,78,78,78,78,78,78,78,78,78,78,78,78,78,78,78,82,82,82,78,78,78,81,78,85,85,85,85,85,85,85,82,82,82,82,8]} 1. e4 {[%emt 0:00:02]} d5 {[%emt 0:00:19]} 2. exd5 {[%emt 0:00:06]} Qxd5 {[%emt 0:00:05]} 3. Nc3 {[%emt 0:00:05]} Qa5 {[%emt 0:00:16]} 4. d4 {[%emt 0:00:10]} Nf6 {[%emt 0:00:38]} 5. Bd2 {[%emt 0:00:20]} c6 {[%emt 0:03:36]} 6. Bc4 {[%emt 0:00:56]} Bg4 {[%emt 0:00:29] B01: Scandinavian Defence.} (6... Qd8 $11 {should be considered.}) 7. f3 $16 {[%emt 0:03:03][%cal Bf2f3,Bf3f4,Bf4f5][%mdl 32]} Bf5 {[%emt 0:00:48]} 8. g4 {[%emt 0:06:47]} Bg6 {[%emt 0:00:44]} ({Better is} 8... Bd7) 9. f4 {[%emt 0:00:41]} e6 {[%emt 0:03:31] Inhibits f5.} (9... Qb6 $16) 10. f5 $1 $18 {[%emt 0:20:22]} exf5 {[%emt 0:01:16]} 11. g5 $1 $36 {[%emt 0:00:58][%mdl 2048] White is on the roll.} Nfd7 {[%emt 0:07:47]} (11... Bh5 $2 12. Be2 $18 (12. Nf3 Nfd7 $16)) (11... Nh5 $142) 12. Qe2+ {[%emt 0:01:13]} Be7 {[%emt 0:00:05]} (12... Kd8 $142 13. O-O-O Bd6) 13. h4 {[%emt 0:03:17][%cal Bh2h4,Bh4h5][%mdl 32] [#]} f4 $146 {[%emt 0:02:50]} (13... b5 {keeps fighting.} 14. Nxb5 Qd8) ({Predecessor:} 13... h6 14. h5 Bh7 15. Nb5 Qd8 16. Nd6+ Kf8 17. Nxf7 Qc7 18. Nxh8 Qg3+ 19. Qf2 Bd6 {1-0 (29) Hunold,R (2091)-Jung,M (1819) Buesum 2016}) 14. h5 {[%emt 0:02:29]} Bxc2 {[%emt 0:01:21] [#]} 15. Nb5 $1 {[%emt 0:26:32][%cal Bc3b5,Bb5d6,Bd6f7,Bf7e5][%mdl 544]} Qb6 {[%emt 0:01:12]} 16. Nd6+ {[%emt 0:07:47]} Kf8 {[%emt 0:00:17]} 17. Nxf7 {[%emt 0:00:34] And now Nf3 would win.} (17. Nc8 Qd8 18. Nxe7 Qxe7 $11) 17... Rg8 {[%emt 0:22:53]} (17... Qxb2 18. Rc1 Rg8 19. Qe6) (17... Qxd4 $142 18. Nxh8 Qe4) 18. Nf3 {[%emt 0:06:00][%cal Of7d6] Nd6! is the strong threat.} Na6 {[%emt 0:05:55]} 19. Qe6 {[%emt 0:09:11]} Nac5 {[%emt 0:01:24] [#]} 20. N7e5 $1 {[%emt 0:03:07][%csl Gc4][%cal Re6g8]} Nxe6 {[%emt 0:01:19]} 21. Nxd7+ {[%emt 0:00:01]} Ke8 {[%emt 0:01:46]} 22. Nxb6 {[%emt 0:00:06]} axb6 {[%emt 0:00:19]} 23. Bxe6 {[%emt 0:00:04]} Rf8 {[%emt 0:00:20]} 24. O-O {[%emt 0:00:53][%cal Bh1f1,Bf1e1,Be1e5][%mdl 32]} Bf5 {[%emt 0:00:11]} 25. Bxf5 {[%emt 0:01:01]} Rxf5 {[%emt 0:00:06]} 26. Rfe1 {[%emt 0:00:06]} Kd7 {[%emt 0:01:46]} 27. Re5 {[%emt 0:00:08]} Raf8 {[%emt 0:00:28]} 28. Rae1 {[%emt 0:00:25]} Bd6 {[%emt 0:02:14]} 29. Rxf5 {[%emt 0:00:08]} Rxf5 {[%emt 0:00:03]} 30. Kf2 {[%emt 0:01:15]} b5 {[%emt 0:03:04]} 31. Re4 {[%emt 0:00:28]} h6 {[%emt 0:00:58]} 32. gxh6 {[%emt 0:03:40]} gxh6 {[%emt 0:00:02]} 33. Ne5+ {[%emt 0:00:07]} Kc8 {[%emt 0:01:31]} 34. Rxf4 {[%emt 0:00:31]} Rxh5 {[%emt 0:00:10]} 35. Rf6 {[%emt 0:02:03][%csl LRd6,LRh6]} Bxe5 {[%emt 0:01:59]} 36. dxe5 {[%emt 0:00:12]} Rxe5 {[%emt 0:00:06]} 37. Bxh6 {[%emt 0:00:31][%mdl 4096] Endgame KRB-KR} (37. Rxh6 Rf5+ 38. Ke3 Rf7) 37... Rc5 {[%emt 0:19:28]} 38. Rd6 {[%emt 0:00:22]} b4 {[%emt 0:03:45]} 39. Rd2 {[%emt 0:01:06]} Ra5 {[%emt 0:00:25]} 40. b3 {[%emt 0:00:00]} Rh5 {[%emt 0:00:00]} 41. Bf4 {[%emt 0:03:09]} b6 {[%emt 0:04:10]} 42. Ke3 {[%emt 0:01:39]} Kb7 {[%emt 0:00:11]} 43. Bd6 {[%emt 0:05:54]} c5 {[%emt 0:01:06]} 44. Ke4 {[%emt 0:00:39] Strongly threatening Be5.} Kc6 {[%emt 0:00:48]} 45. Bf4 {[%emt 0:01:35] White threatens Rd6+ and mate.} Rh1 {[%emt 0:00:28]} 46. Rd6+ {[%emt 0:03:23]} Kb5 {[%emt 0:03:27]} 47. Rh6 {[%emt 0:04:00]} Re1+ {[%emt 0:00:05]} 48. Kd5 {[%emt 0:01:02]} Re7 {[%emt 0:00:40] Inhibits Bc7.} (48... Rd1+ {was worth a try.} 49. Ke6 Ra1) 49. Kd6 {[%emt 0:02:48]} Rf7 {[%emt 0:05:17]} 50. Be5 {[%emt 0:01:11]} Ra7 {[%emt 0:11:25]} 51. Rh2 {[%emt 0:00:43] Black must now prevent Bf6.} Rf7 {[%emt 0:03:37]} 52. Ke6 {[%emt 0:02:09]} Rf3 {[%emt 0:01:50]} 53. Kd6 {[%emt 0:03:17]} Rf7 $1 {[%emt 0:04:30]} 54. Rd2 {[%emt 0:00:22]} Rh7 {[%emt 0:01:24]} 55. Ke6 {[%emt 0:00:23]} Ra7 {[%emt 0:00:48]} 56. Bf6 {[%emt 0:00:21]} Ra8 $2 {[%emt 0:07:56]} (56... Ra6 57. Bg5 Kc6) 57. Bd8 {[%emt 0:00:59] Kd7 would kill now.} c4 {[%emt 0:03:12]} 58. Rd5+ {[%emt 0:01:38]} Kc6 {[%emt 0:00:02]} 59. Rd6+ {[%emt 0:04:07]} Kc5 {[%emt 0:01:30]} (59... Kb5 $18 60. Kd5 Ka6 61. Rxb6+ Ka7) 60. Rd5+ $2 {[%emt 0:00:41]} (60. Bxb6+ {mates} Kb5 61. Bg1 (61. bxc4+ Kxc4 62. Rd4+ Kb5 $11) 61... Rg8 62. Rd5+ Ka6 63. Bf2 (63. bxc4 Rg6+ 64. Kd7 Rxg1 $16) 63... Rg2 64. Bd4 (64. bxc4 Rxf2 65. Rb5 Rxa2 $11) 64... c3 65. Rd6+ Kb5 66. Rb6+ Ka5 67. Rc6) 60... Kc6 {[%emt 0:00:08]} 61. Rd6+ $2 {[%emt 0:00:00]} (61. bxc4 Rxa2 62. Rb5 Rc2 $14) (61. Rd4 $18) 61... Kc5 $1 {[%emt 0:00:12]} 62. Bxb6+ {[%emt 0:00:17]} Kb5 {[%emt 0:00:01]} 63. Kd5 {[%emt 0:02:59]} (63. bxc4+ Kxc4 64. Rd4+ Kb5 $11) 63... cxb3 {[%emt 0:00:51]} 64. axb3 {[%emt 0:00:37]} Ra3 {[%emt 0:00:02]} 65. Bd8 {[%emt 0:00:28]} Rxb3 {[%emt 0:00:09]} 66. Rb6+ {[%emt 0:00:04]} Ka5 {[%emt 0:00:13]} 67. Rb8+ $1 {[%emt 0:00:11]} Ka6 {[%emt 0:00:08]} 68. Kc4 {[%emt 0:00:38] White is better.} Rb1 {[%emt 0:00:03]} 69. Bf6 {[%emt 0:00:55]} ({Much worse is} 69. Rxb4 $6 Rxb4+ 70. Kxb4 $11) 69... Ka7 {[%emt 0:00:24]} 70. Rd8 {[%emt 0:00:17]} Kb7 {[%emt 0:00:15]} 71. Be7 {[%emt 0:00:14]} b3 {[%emt 0:00:15]} 72. Bf6 {[%emt 0:00:38]} Kc7 {[%emt 0:00:34]} 73. Rd3 $1 {[%emt 0:00:08]} Kc6 {[%emt 0:00:24]} 74. Be5 $1 {[%emt 0:00:13]} Kb6 {[%emt 0:01:03]} 75. Kb4 {[%emt 0:00:07]} (75. Rxb3+ Rxb3 76. Kxb3 $11) 75... Kc6 {[%emt 0:00:13]} 76. Rd6+ {[%emt 0:00:05]} Kb7 {[%emt 0:00:07]} 77. Rd2 {[%emt 0:00:14]} Re1 {[%emt 0:00:23]} 78. Bd4 {[%emt 0:00:16]} ({Don't play} 78. Kxb3 Rxe5 79. Kc4 Kc6 $11) 78... Rb1 {[%emt 0:00:45]} 79. Bb2 {[%emt 0:00:05]} Re1 {[%emt 0:00:52]} 80. Kxb3 {[%emt 0:00:04]} (80. Kc4 {is more complex.} Re3 81. Bc3 Kc6 82. Rb2) 80... Re4 {[%emt 0:00:33]} 81. Bd4 {[%emt 0:00:04]} Re7 {[%emt 0:00:09]} 82. Kc4 {[%emt 0:00:05]} Kc6 {[%emt 0:00:14]} 83. Ra2 {[%emt 0:00:07]} Rd7 {[%emt 0:00:17]} 84. Ra6+ {[%emt 0:00:29]} Kb7 {[%emt 0:00:03]} 85. Rh6 {[%emt 0:00:23]} Rc7+ {[%emt 0:01:33]} 86. Bc5 {[%emt 0:00:05]} Rc6 {[%emt 0:00:44]} 87. Rh7+ {[%emt 0:00:07]} Rc7 {[%emt 0:00:02]} 88. Rh3 {[%emt 0:00:22]} Rd7 {[%emt 0:00:33] [#]} 89. Kb5 $1 {[%emt 0:00:11]} Rf7 {[%emt 0:00:25]} 90. Ra3 {[%emt 0:00:12]} Rd7 {[%emt 0:00:10]} 91. Ra6 {[%emt 0:00:34]} Kc7 {[%emt 0:01:24]} 92. Kc4 {[%emt 0:00:44]} Kb7 {[%emt 0:00:09]} 93. Rf6 {[%emt 0:00:53]} Kc7 {[%emt 0:00:13]} 94. Kb5 {[%emt 0:00:16]} Kb7 {[%emt 0:00:34]} 95. Bd6 {[%emt 0:00:06]} Kc8 {[%emt 0:01:05]} 96. Kc6 {[%emt 0:00:10]} Rc7+ {[%emt 0:00:06]} 97. Kb6 {[%emt 0:01:19]} Rb7+ {[%emt 0:00:11]} 98. Kc5 {[%emt 0:00:12]} Kd7 {[%emt 0:00:19]} 99. Kd5 {[%emt 0:00:21]} Rb5+ {[%emt 0:01:37] [#]} 100. Bc5 $1 {[%emt 0:00:04] White wants to mate with Rf7+.} Rb7 {[%emt 0:00:09]} 101. Rf7+ {[%emt 0:00:40]} Kc8 {[%emt 0:00:03]} 102. Be7 {[%emt 0:00:45]} Rd7+ {[%emt 0:00:59]} 103. Ke6 {[%emt 0:00:22]} Rc7 {[%emt 0:00:06]} 104. Bd6 {[%emt 0:00:17] Weighted Error Value: White=0.46/Black=0.42} (104. Rf3 $16) 1/2-1/2